[Event "LEM Niedersachsen-A-Open 2025"]
[Site "Verden"]
[Date "2025.01.05"]
[Round "7.34"]
[White "Wilmink, Luca"]
[Black "Aden, Dagmar"]
[Result "1/2-1/2"]
[ECO "B56"]
[WhiteElo "1792"]
[BlackElo "1861"]
[Annotator "NA RC"]
[PlyCount "47"]
[EventDate "2024.12.27"]
[EventType "swiss"]
[EventCountry "GER"]
[SourceTitle "playchess.com"]
[Source "ChessBase"]
[SourceQuality "1"]
[TimeControl "40/5400+30:1800+30"]

1. e4 {[%emt 0:00:04]} c5 {[%emt 0:00:07]} 2. Nf3 {[%emt 0:00:20]} Nc6 {[%emt 0:00:09]} 3. d4 {[%emt 0:00:31]} cxd4 {[%emt 0:00:11]} 4. Nxd4 {[%emt 0:00:12]} Nf6 {[%emt 0:03:51]} 5. Nc3 {[%emt 0:00:37]} d6 {[%emt 0:04:16]} 6. Be3 {[%emt 0:02:27]} e5 {[%emt 0:03:08]} 7. Nf3 {[%emt 0:01:38]} h6 {[%emt 0:02:00]} 8. Bc4 {[%emt 0:01:50]} Be7 {[%emt 0:05:12]} 9. Qd2 {[%emt 0:03:37]} a6 {[%emt 0:04:12]} 10. h3 {[%emt 0:01:24]} b5 {[%emt 0:02:58]} 11. Bd5 {[%emt 0:03:00]} Bb7 {[%emt 0:03:37]} 12. a3 {[%emt 0:01:18]} Qc7 {[%emt 0:04:30]} 13. g4 {[%emt 0:06:10]} Na5 {[%emt 0:02:56]} 14. b3 {[%emt 0:13:36]} Rc8 {[%emt 0:03:36]} 15. Bxb7 {[%emt 0:05:18]} Nxb7 {[%emt 0:02:08]} 16. Nd5 $17 {[%emt 0:00:35]} Qxc2 {[%emt 0:09:17]} 17. Nxf6+ {[%emt 0:01:44]} Bxf6 {[%emt 0:00:14]} 18. Qd5 {[%emt 0:00:13]} Qc3+ {[%emt 0:10:54]} 19. Ke2 {[%emt 0:04:18]} Qc6 {[%emt 0:06:13]} 20. Qxc6+ {[%emt 0:01:48]} Rxc6 {[%emt 0:00:08]} 21. Rac1 {[%emt 0:01:49]} Kd7 {[%emt 0:00:33]} 22. Rxc6 {[%emt 0:00:26]} Kxc6 {[%emt 0:00:08]} 23. Rc1+ {[%emt 0:00:16]} Kd7 {[%emt 0:00:24]} 24. b4 {[%emt 0:00:57]} 1/2-1/2